[Event "26th Troya Open 2018"]
[Site "Canakkale"]
[Date "2018.08.05"]
[Round "1.13"]
[White "Acar, Ilhami"]
[Black "Sahin, Dilem"]
[Result "1-0"]
[ECO "C90"]
[WhiteElo "1658"]
[BlackElo "1283"]
[Annotator "NA"]
[PlyCount "101"]
[EventDate "2018.08.06"]
[EventType "swiss"]
[EventCountry "TUR"]
[SourceTitle "playchess.com"]
[Source "ChessBase"]
[SourceQuality "1"]
[TimeControl "5400+30"]

1. e4 {[%emt 1:25:45]} e5 {[%emt 1:07:30]} 2. Nf3 {[%emt 0:00:30]} Nc6 {[%emt 0:00:30]} 3. Bb5 {[%emt 0:00:30]} Nf6 {[%emt 0:00:30]} 4. d3 {[%emt 0:00:30]} d6 {[%emt 0:00:30]} 5. c3 {[%emt 0:00:30]} Be7 {[%emt 0:00:30]} 6. O-O {[%emt 0:00:30]} O-O {[%emt 0:00:30]} 7. Re1 {[%emt 0:00:30]} a6 {[%emt 0:00:30]} 8. Ba4 {[%emt 0:00:30]} b5 {[%emt 0:00:30]} 9. Bb3 {[%emt 0:00:30]} Na5 {[%emt 0:00:30]} 10. Bc2 {[%emt 0:00:30]} Bg4 {[%emt 0:00:30]} 11. d4 {[%emt 0:00:30]} Bxf3 {[%emt 0:00:30]} 12. Qxf3 {[%emt 0:00:30]} h6 {[%emt 0:00:30]} 13. b3 {[%emt 0:00:30]} Qd7 {[%emt 0:00:30]} 14. h3 {[%emt 0:00:30]} Nh7 {[%emt 0:00:30]} 15. Qg3 {[%emt 0:00:30]} Qe6 {[%emt 0:00:30]} 16. Be3 {[%emt 0:00:30]} Kh8 {[%emt 0:00:30]} 17. Nd2 {[%emt 0:00:30]} Bf6 {[%emt 0:00:30]} 18. Bd3 {[%emt 0:00:30]} Qd7 {[%emt 0:00:30]} 19. f4 {[%emt 0:00:30]} Nc6 {[%emt 0:00:30]} 20. d5 {[%emt 0:00:30]} Ne7 {[%emt 0:00:30]} 21. Rac1 {[%emt 0:00:30]} Ng6 {[%emt 0:00:30]} 22. Nf3 {[%emt 0:00:30]} exf4 {[%emt 0:00:30]} 23. Bxf4 {[%emt 0:00:30]} Nxf4 {[%emt 0:00:30]} 24. Qxf4 {[%emt 0:00:30]} Ng5 {[%emt 0:00:30]} 25. Kh1 {[%emt 0:00:30]} Rfe8 {[%emt 0:00:30]} 26. Rc2 {[%emt 0:00:30]} Be5 {[%emt 0:00:30]} 27. Nxe5 {[%emt 0:00:30]} Rxe5 {[%emt 0:00:30]} 28. Rf1 {[%emt 0:00:30]} Nxh3 {[%emt 0:00:30]} 29. Qxf7 {[%emt 0:00:30]} Qg4 {[%emt 0:00:30]} 30. Qf3 {[%emt 0:00:30]} Rh5 {[%emt 0:00:30]} 31. Qxg4 {[%emt 0:00:30]} Nf2+ {[%emt 0:00:30]} 32. Kg1 {[%emt 0:00:30]} Nxg4 {[%emt 0:00:30]} 33. Rf4 {[%emt 0:00:30]} Rg5 {[%emt 0:00:30]} 34. Rc1 {[%emt 0:00:30]} h5 {[%emt 0:00:30]} 35. Rcf1 {[%emt 0:00:30]} Rg8 {[%emt 0:00:30]} 36. Be2 {[%emt 0:00:30]} Ne3 {[%emt 0:00:30]} 37. R1f2 {[%emt 0:00:30]} g6 {[%emt 0:00:30]} 38. Bf3 {[%emt 0:00:30]} Rg3 {[%emt 0:00:30]} 39. Re2 {[%emt 0:00:30]} g5 {[%emt 0:00:30]} 40. Rf7 {[%emt 0:00:30]} Ng4 {[%emt 0:00:30]} 41. Rxc7 {[%emt 0:00:30]} h4 {[%emt 0:00:30]} 42. Bxg4 {[%emt 0:00:30]} Rxg4 {[%emt 0:00:30]} 43. e5 {[%emt 0:00:30]} dxe5 {[%emt 0:00:30]} 44. d6 {[%emt 0:00:30]} e4 {[%emt 0:00:30]} 45. d7 {[%emt 0:00:30]} Rf8 {[%emt 0:00:30]} 46. Rc8 {[%emt 0:00:30]} Rgf4 {[%emt 0:00:30]} 47. Rxe4 {[%emt 0:00:30]} Rf1+ {[%emt 0:00:30]} 48. Kh2 {[%emt 0:00:30]} R1f7 {[%emt 0:00:30]} 49. Rxf8+ {[%emt 0:00:30]} Rxf8 {[%emt 0:00:30]} 50. Re8 {[%emt 0:00:30]} Rxe8 {[%emt 0:00:30]} 51. dxe8=Q+ {[%emt 0:00:00]} 1-0

[Event "26th Troya Open 2018"]
[Site "Canakkale"]
[Date "2018.08.05"]
[Round "1.14"]
[White "Yalcin, Sitki"]
[Black "Istekli, Erdem"]
[Result "0-1"]
[ECO "B22"]
[WhiteElo "1327"]
[BlackElo "1713"]
[Annotator "NA"]
[PlyCount "126"]
[EventDate "2018.08.06"]
[EventType "swiss"]
[EventCountry "TUR"]
[SourceTitle "playchess.com"]
[Source "ChessBase"]
[SourceQuality "1"]
[TimeControl "5400+30"]

1. e4 {[%emt 1:07:30]} c5 {[%emt 1:28:25]} 2. Nf3 {[%emt 0:00:30]} Nc6 {[%emt 0:00:30]} 3. c3 {[%emt 0:00:30]} d5 {[%emt 0:00:30]} 4. exd5 {[%emt 0:00:30]} Qxd5 {[%emt 0:00:30]} 5. Be2 {[%emt 0:00:30]} Nf6 {[%emt 0:00:30]} 6. d3 {[%emt 0:00:30]} e5 {[%emt 0:00:30]} 7. c4 {[%emt 0:00:30]} Qd6 {[%emt 0:00:30]} 8. Nc3 {[%emt 0:00:30]} Bf5 {[%emt 0:00:30]} 9. O-O {[%emt 0:00:30]} Be7 {[%emt 0:00:30]} 10. Bg5 {[%emt 0:00:30]} O-O {[%emt 0:00:30]} 11. Bxf6 {[%emt 0:00:30]} Bxf6 {[%emt 0:00:30]} 12. Nd5 {[%emt 0:00:30]} Ne7 {[%emt 0:00:30]} 13. Nxf6+ {[%emt 0:00:30]} Qxf6 {[%emt 0:00:30]} 14. Qc2 {[%emt 0:00:30]} Rad8 {[%emt 0:00:30]} 15. Rfe1 {[%emt 0:00:30]} Nc6 {[%emt 0:00:30]} 16. a3 {[%emt 0:00:30]} Nd4 {[%emt 0:00:30]} 17. Nxd4 {[%emt 0:00:30]} Rxd4 {[%emt 0:00:30]} 18. Rad1 {[%emt 0:00:30]} Rfd8 {[%emt 0:00:30]} 19. f3 {[%emt 0:00:30]} Qd6 {[%emt 0:00:30]} 20. b3 {[%emt 0:00:30]} f6 {[%emt 0:00:30]} 21. Qc3 {[%emt 0:00:30]} Bxd3 {[%emt 0:00:30]} 22. Bxd3 {[%emt 0:00:30]} Rxd3 {[%emt 0:00:30]} 23. Rxd3 {[%emt 0:00:30]} Qxd3 {[%emt 0:00:30]} 24. Re3 {[%emt 0:00:30]} Qxc3 {[%emt 0:00:30]} 25. Rxc3 {[%emt 0:00:30]} Kf7 {[%emt 0:00:30]} 26. Kf2 {[%emt 0:00:30]} Rd2+ {[%emt 0:00:30]} 27. Kg3 {[%emt 0:00:30]} Ke7 {[%emt 0:00:30]} 28. Re3 {[%emt 0:00:30]} Rd4 {[%emt 0:00:30]} 29. Kf2 {[%emt 0:00:30]} Rd2+ {[%emt 0:00:30]} 30. Re2 {[%emt 0:00:30]} Rxe2+ {[%emt 0:00:30]} 31. Kxe2 {[%emt 0:00:30]} f5 {[%emt 0:00:30]} 32. Ke3 {[%emt 0:00:30]} Ke6 {[%emt 0:00:30]} 33. g3 {[%emt 0:00:30]} g6 {[%emt 0:00:30]} 34. h3 {[%emt 0:00:30]} b6 {[%emt 0:00:30]} 35. Kd3 {[%emt 0:00:30]} Kd6 {[%emt 0:00:30]} 36. Ke3 {[%emt 0:00:30]} Ke6 {[%emt 0:00:30]} 37. Kd3 {[%emt 0:00:30]} Kd6 {[%emt 0:00:30]} 38. Ke3 {[%emt 0:00:30]} a6 {[%emt 0:00:30]} 39. a4 {[%emt 0:00:30]} Ke6 {[%emt 0:00:30]} 40. Kd3 {[%emt 0:00:30]} a5 {[%emt 0:00:30]} 41. Ke3 {[%emt 0:00:30]} h6 {[%emt 0:00:30]} 42. Kd3 {[%emt 0:00:30]} Kf6 {[%emt 0:00:30]} 43. Ke3 {[%emt 0:00:30]} h5 {[%emt 0:00:30]} 44. Kd3 {[%emt 0:00:30]} Ke6 {[%emt 0:00:30]} 45. Ke3 {[%emt 0:00:30]} Kf6 {[%emt 0:00:30]} 46. Kd3 {[%emt 0:00:30]} g5 {[%emt 0:00:30]} 47. Ke3 {[%emt 0:00:30]} f4+ {[%emt 0:00:30]} 48. gxf4 {[%emt 0:00:30]} exf4+ {[%emt 0:00:30]} 49. Ke4 {[%emt 0:00:30]} Ke6 {[%emt 0:00:30]} 50. Kd3 {[%emt 0:00:30]} Kf5 {[%emt 0:00:30]} 51. Ke2 {[%emt 0:00:30]} Ke5 {[%emt 0:00:30]} 52. Kd3 {[%emt 0:00:30]} Kf5 {[%emt 0:00:30]} 53. Ke2 {[%emt 0:00:30]} g4 {[%emt 0:00:30]} 54. fxg4+ {[%emt 0:03:30]} hxg4 {[%emt 0:00:02]} 55. hxg4+ {[%emt 0:00:30]} Kxg4 {[%emt 0:00:30]} 56. Kf2 {[%emt 0:00:00]} f3 {[%emt 0:00:00]} 57. Kf1 {[%emt 0:00:00]} Kg3 {[%emt 0:00:48]} 58. Kg1 {[%emt 0:00:30]} f2+ {[%emt 0:01:01]} 59. Kf1 {[%emt 0:00:30]} Kf3 {[%emt 0:00:00]} 60. b4 {[%emt 0:00:00]} axb4 {[%emt 0:00:25]} 61. a5 {[%emt 0:00:00]} b3 {[%emt 0:00:00]} 62. axb6 {[%emt 0:00:00]} b2 {[%emt 0:00:08]} 63. b7 {[%emt 0:00:00]} b1=Q# {[%emt 0:00:08]} 0-1

[Event "26th Troya Open 2018"]
[Site "Canakkale"]
[Date "2018.08.05"]
[Round "1.15"]
[White "Sahap, Abdurrahman"]
[Black "Yenen, Utku"]
[Result "1-0"]
[ECO "D60"]
[WhiteElo "1688"]
[BlackElo "1315"]
[Annotator "NA"]
[PlyCount "63"]
[EventDate "2018.08.06"]
[EventType "swiss"]
[EventCountry "TUR"]
[SourceTitle "playchess.com"]
[Source "ChessBase"]
[SourceQuality "1"]
[TimeControl "5400+30"]

1. d4 {[%emt 0:00:30]} e6 {[%emt 0:00:30]} 2. c4 {[%emt 0:00:30]} d5 {[%emt 0:00:00]} 3. Nc3 {[%emt 0:00:00]} Nf6 {[%emt 0:00:00]} 4. Nf3 {[%emt 0:00:00]} Be7 {[%emt 0:00:30]} 5. Bg5 {[%emt 0:00:30]} Nbd7 {[%emt 0:00:30]} 6. e3 {[%emt 0:00:30]} O-O {[%emt 0:00:30]} 7. Bd3 {[%emt 0:01:30]} a6 {[%emt 0:00:00]} 8. O-O {[%emt 0:00:00]} dxc4 {[%emt 0:00:00]} 9. Bxc4 {[%emt 0:00:00]} b5 {[%emt 0:00:30]} 10. Bb3 {[%emt 0:02:30]} Bb7 {[%emt 0:00:30]} 11. a3 {[%emt 0:02:30]} h6 {[%emt 0:03:30]} 12. Bh4 {[%emt 0:00:30]} Rc8 {[%emt 0:00:30]} 13. Rc1 {[%emt 0:03:30]} c5 {[%emt 0:02:30]} 14. dxc5 {[%emt 0:06:30]} Nxc5 {[%emt 0:00:00]} 15. Nd4 {[%emt 0:05:30]} Qb6 {[%emt 0:05:00]} 16. Ba2 {[%emt 0:07:30]} Rfd8 {[%emt 0:09:30]} 17. Qe2 {[%emt 0:02:30]} g5 {[%emt 0:09:30]} 18. Bg3 {[%emt 0:00:30]} Nce4 {[%emt 0:02:30]} 19. Nxe4 {[%emt 0:06:30]} Nxe4 {[%emt 0:00:30]} 20. Qg4 {[%emt 0:04:30]} Rxc1 {[%emt 0:01:30]} 21. Rxc1 {[%emt 0:00:30]} Nxg3 {[%emt 0:01:30]} 22. hxg3 {[%emt 0:00:30]} Kg7 {[%emt 0:01:30]} 23. Rd1 {[%emt 0:05:30]} Bf6 {[%emt 0:02:30]} 24. Qe2 {[%emt 0:05:30]} Bxd4 {[%emt 0:02:30]} 25. exd4 {[%emt 0:00:30]} Rxd4 {[%emt 0:00:30]} 26. Qe5+ {[%emt 0:00:00]} Kg8 {[%emt 0:00:30]} 27. Qxd4 {[%emt 0:00:00]} Qc6 {[%emt 0:00:30]} 28. f3 {[%emt 0:00:30]} f5 {[%emt 0:00:30]} 29. Qf6 {[%emt 0:01:30]} Qc5+ {[%emt 0:00:30]} 30. Kh2 {[%emt 0:00:30]} Bxf3 {[%emt 0:01:30]} 31. Rd8+ {[%emt 0:00:30]} Kh7 {[%emt 0:00:30]} 32. Rh8# {[%emt 0:00:30]} 1-0

[Event "26th Troya Open 2018"]
[Site "Canakkale"]
[Date "2018.08.05"]
[Round "1.16"]
[White "Alabas, Anil"]
[Black "Albay, Koraycan"]
[Result "0-1"]
[ECO "C01"]
[WhiteElo "1350"]
[BlackElo "1693"]
[Annotator "NA"]
[PlyCount "70"]
[EventDate "2018.08.06"]
[EventType "swiss"]
[EventCountry "TUR"]
[SourceTitle "playchess.com"]
[Source "ChessBase"]
[SourceQuality "1"]
[TimeControl "5400+30"]

1. e4 {[%emt 0:00:30]} e6 {[%emt 0:00:30]} 2. d4 {[%emt 0:00:30]} d5 {[%emt 0:00:30]} 3. exd5 {[%emt 0:00:00]} exd5 {[%emt 0:00:00]} 4. Bd3 {[%emt 0:00:00]} Bd6 {[%emt 0:00:00]} 5. c3 {[%emt 0:00:00]} Ne7 {[%emt 0:00:30]} 6. Nf3 {[%emt 0:01:00]} Bg4 {[%emt 0:00:00]} 7. O-O {[%emt 0:00:30]} Nbc6 {[%emt 0:03:00]} 8. Nbd2 {[%emt 0:01:30]} Qd7 {[%emt 0:01:30]} 9. Re1 {[%emt 0:00:30]} O-O-O {[%emt 0:00:30]} 10. b4 {[%emt 0:01:30]} Ng6 {[%emt 0:00:30]} 11. Qa4 {[%emt 0:01:30]} Kb8 {[%emt 0:04:30]} 12. b5 {[%emt 0:08:30]} Nce7 {[%emt 0:03:30]} 13. Qb3 {[%emt 0:07:30]} Nf4 {[%emt 0:05:30]} 14. Bf1 {[%emt 0:00:30]} f6 {[%emt 0:08:30]} 15. a4 {[%emt 0:01:30]} Qf5 {[%emt 0:03:30]} 16. a5 {[%emt 0:04:30]} Nc8 {[%emt 0:12:30]} 17. c4 {[%emt 0:03:30]} dxc4 {[%emt 0:02:30]} 18. Qxc4 {[%emt 0:01:30]} Rhe8 {[%emt 0:04:30]} 19. Rxe8 {[%emt 0:14:30]} Rxe8 {[%emt 0:00:30]} 20. Ba3 {[%emt 0:04:30]} Bxf3 {[%emt 0:09:30]} 21. Nxf3 {[%emt 0:01:30]} Bxa3 {[%emt 0:01:30]} 22. Rxa3 {[%emt 0:00:30]} Nd6 {[%emt 0:00:30]} 23. Qb3 {[%emt 0:12:30]} Ne2+ {[%emt 0:07:30]} 24. Bxe2 {[%emt 0:00:30]} Rxe2 {[%emt 0:00:00]} 25. b6 {[%emt 0:00:30]} Qc2 {[%emt 0:03:00]} 26. Qxc2 {[%emt 0:06:30]} Rxc2 {[%emt 0:00:30]} 27. bxc7+ {[%emt 0:00:30]} Kxc7 {[%emt 0:00:30]} 28. Re3 {[%emt 0:00:30]} Rc1+ {[%emt 0:00:30]} 29. Re1 {[%emt 0:02:30]} Rxe1+ {[%emt 0:00:30]} 30. Nxe1 {[%emt 0:00:00]} Nc4 {[%emt 0:00:30]} 31. a6 {[%emt 0:01:00]} b5 {[%emt 0:00:30]} 32. Nc2 {[%emt 0:01:30]} Kb6 {[%emt 0:00:30]} 33. Kf1 {[%emt 0:00:30]} Kxa6 {[%emt 0:00:30]} 34. Ke2 {[%emt 0:01:30]} Kb6 {[%emt 0:04:30]} 35. Kd3 {[%emt 0:00:30]} a5 {[%emt 0:00:30]} 0-1

[Event "26th Troya Open 2018"]
[Site "Canakkale"]
[Date "2018.08.05"]
[Round "1.17"]
[White "Soydan, Busra"]
[Black "Yildirim, Ates Ada"]
[Result "1/2-1/2"]
[ECO "D48"]
[WhiteElo "1701"]
[BlackElo "1330"]
[Annotator "NA"]
[PlyCount "65"]
[EventDate "2018.08.06"]
[EventType "swiss"]
[EventCountry "TUR"]
[SourceTitle "playchess.com"]
[Source "ChessBase"]
[SourceQuality "1"]
[TimeControl "5400+30"]

1. Nf3 {[%emt 0:00:30]} Nf6 {[%emt 0:01:30]} 2. c4 {[%emt 0:00:30]} e6 {[%emt 0:00:30]} 3. d4 {[%emt 0:04:30]} d5 {[%emt 0:00:30]} 4. e3 {[%emt 0:04:30]} c6 {[%emt 0:03:30]} 5. Bd3 {[%emt 0:05:30]} dxc4 {[%emt 0:00:30]} 6. Bxc4 {[%emt 0:01:30]} b5 {[%emt 0:00:00]} 7. Bd3 {[%emt 0:02:30]} Bb7 {[%emt 0:01:00]} 8. O-O {[%emt 0:00:30]} Be7 {[%emt 0:01:30]} 9. b3 {[%emt 0:06:30]} O-O {[%emt 0:02:30]} 10. Bb2 {[%emt 0:00:30]} Nbd7 {[%emt 0:02:30]} 11. Nc3 {[%emt 0:08:30]} a6 {[%emt 0:01:30]} 12. Ne4 {[%emt 0:18:30]} c5 {[%emt 0:10:30]} 13. Nxc5 {[%emt 0:17:30]} Nxc5 {[%emt 0:00:30]} 14. dxc5 {[%emt 0:00:30]} Bxc5 {[%emt 0:00:30]} 15. Qe2 {[%emt 0:02:30]} Qe7 {[%emt 0:05:30]} 16. Rac1 {[%emt 0:02:30]} Rac8 {[%emt 0:01:30]} 17. a4 {[%emt 0:02:48]} bxa4 {[%emt 0:09:30]} 18. bxa4 {[%emt 0:00:10]} a5 {[%emt 0:01:30]} 19. Rfd1 {[%emt 0:01:15]} Rfd8 {[%emt 0:07:30]} 20. Ne5 {[%emt 0:02:37]} Bd5 {[%emt 0:08:30]} 21. Nc4 {[%emt 0:10:09]} Bb4 {[%emt 0:03:30]} 22. e4 {[%emt 0:01:31]} Bxc4 {[%emt 0:02:30]} 23. Bxc4 {[%emt 0:00:31]} Rxd1+ {[%emt 0:00:30]} 24. Rxd1 {[%emt 0:00:28]} e5 {[%emt 0:01:30]} 25. h3 {[%emt 0:00:39]} h6 {[%emt 0:01:30]} 26. Bb5 {[%emt 0:02:05]} Ba3 {[%emt 0:04:30]} 27. Bxa3 {[%emt 0:00:30]} Qxa3 {[%emt 0:03:30]} 28. Ba6 {[%emt 0:01:00]} Rc1 {[%emt 0:00:30]} 29. Bd3 {[%emt 0:02:10]} Rxd1+ {[%emt 0:02:30]} 30. Qxd1 {[%emt 0:00:30]} Qb4 {[%emt 0:00:00]} 31. f3 {[%emt 0:00:33]} Qd4+ {[%emt 0:01:00]} 32. Kh2 {[%emt 0:00:37]} Nd7 {[%emt 0:00:30]} 33. Be2 {[%emt 0:00:35]} 1/2-1/2

[Event "26th Troya Open 2018"]
[Site "Canakkale"]
[Date "2018.08.05"]
[Round "1.18"]
[White "Bayram, Efe Berk"]
[Black "Sar, Can"]
[Result "0-1"]
[ECO "B21"]
[WhiteElo "1210"]
[BlackElo "1786"]
[Annotator "NA"]
[PlyCount "108"]
[EventDate "2018.08.06"]
[EventType "swiss"]
[EventCountry "TUR"]
[SourceTitle "playchess.com"]
[Source "ChessBase"]
[SourceQuality "1"]
[TimeControl "5400+30"]

1. e4 {[%emt 0:00:30]} c5 {[%emt 0:00:30]} 2. Nf3 {[%emt 0:00:30]} g6 {[%emt 0:00:00]} 3. d4 {[%emt 0:00:00]} cxd4 {[%emt 0:00:00]} 4. Nxd4 {[%emt 0:00:00]} Bg7 {[%emt 0:00:30]} 5. Nc3 {[%emt 0:00:30]} Nc6 {[%emt 0:00:00]} 6. Nf3 {[%emt 0:00:30]} Nf6 {[%emt 0:02:00]} 7. Bb5 {[%emt 0:00:30]} Qa5 {[%emt 0:03:30]} 8. Bd3 {[%emt 0:06:30]} O-O {[%emt 0:01:30]} 9. O-O {[%emt 0:03:30]} d6 {[%emt 0:00:30]} 10. Qe2 {[%emt 0:01:30]} Bg4 {[%emt 0:01:30]} 11. Qe3 {[%emt 0:01:30]} Rfd8 {[%emt 0:06:30]} 12. Nd2 {[%emt 0:03:30]} Qh5 {[%emt 0:03:30]} 13. h3 {[%emt 0:02:30]} Be6 {[%emt 0:03:30]} 14. Nf3 {[%emt 0:07:30]} h6 {[%emt 0:00:30]} 15. Qe2 {[%emt 0:00:30]} Rac8 {[%emt 0:00:30]} 16. Bd2 {[%emt 0:00:30]} d5 {[%emt 0:00:30]} 17. Rfe1 {[%emt 0:00:30]} d4 {[%emt 0:00:30]} 18. Nd1 {[%emt 0:00:30]} Nd7 {[%emt 0:00:30]} 19. Bc4 {[%emt 0:00:30]} Bxc4 {[%emt 0:00:30]} 20. Qxc4 {[%emt 0:00:30]} Nce5 {[%emt 0:28:30]} 21. Qe2 {[%emt 0:30:30]} Nxf3+ {[%emt 0:00:30]} 22. Qxf3 {[%emt 0:00:30]} Qxf3 {[%emt 0:00:30]} 23. gxf3 {[%emt 0:00:30]} Rxc2 {[%emt 0:00:00]} 24. Bc1 {[%emt 0:00:30]} Ne5 {[%emt 0:00:00]} 25. Kg2 {[%emt 0:00:30]} Nd3 {[%emt 0:00:30]} 26. Rf1 {[%emt 0:00:00]} Rxc1 {[%emt 0:00:00]} 27. Rxc1 {[%emt 0:00:00]} Nxc1 {[%emt 0:00:00]} 28. b3 {[%emt 0:00:30]} Ne2 {[%emt 0:00:30]} 29. Re1 {[%emt 0:00:30]} Nc3 {[%emt 0:00:00]} 30. Nb2 {[%emt 0:00:30]} d3 {[%emt 0:00:00]} 31. Nd1 {[%emt 0:00:00]} d2 {[%emt 0:00:00]} 32. Rf1 {[%emt 0:01:00]} Nxd1 {[%emt 0:01:00]} 33. Rxd1 {[%emt 0:00:30]} Bb2 {[%emt 0:00:00]} 34. Kf1 {[%emt 0:00:00]} Bc1 {[%emt 0:00:00]} 35. Ke2 {[%emt 0:00:00]} e5 {[%emt 0:00:00]} 36. Ke3 {[%emt 0:00:30]} g5 {[%emt 0:00:00]} 37. Ke2 {[%emt 0:00:30]} Kf8 {[%emt 0:00:00]} 38. Ke3 {[%emt 0:00:30]} Ke7 {[%emt 0:00:00]} 39. Ke2 {[%emt 0:00:30]} Rd4 {[%emt 0:00:30]} 40. Ke3 {[%emt 0:00:00]} Kd6 {[%emt 0:00:00]} 41. Ke2 {[%emt 0:00:00]} Kc5 {[%emt 0:00:00]} 42. Ke3 {[%emt 0:00:00]} Kb4 {[%emt 0:00:30]} 43. Ke2 {[%emt 0:00:00]} Kc3 {[%emt 0:00:30]} 44. Ke3 {[%emt 0:00:30]} Kc2 {[%emt 0:00:00]} 45. Ke2 {[%emt 0:00:30]} b5 {[%emt 0:00:00]} 46. Rf1 {[%emt 0:00:30]} d1=Q+ {[%emt 0:00:00]} 47. Rxd1 {[%emt 0:00:30]} Rxd1 {[%emt 0:00:00]} 48. f4 {[%emt 0:00:00]} Bxf4 {[%emt 0:00:00]} 49. f3 {[%emt 0:00:00]} Rd2+ {[%emt 0:00:00]} 50. Kf1 {[%emt 0:00:00]} Kd3 {[%emt 0:00:30]} 51. Kg1 {[%emt 0:00:00]} Ke3 {[%emt 0:00:00]} 52. Kf1 {[%emt 0:00:30]} Bg3 {[%emt 0:00:00]} 53. h4 {[%emt 0:00:00]} Kxf3 {[%emt 0:00:00]} 54. Kg1 {[%emt 0:00:00]} Rd1# {[%emt 0:00:00]} 0-1

[Event "26th Troya Open 2018"]
[Site "Canakkale"]
[Date "2018.08.05"]
[Round "1.20"]
[White "Sahin, Abdullah Baturalp"]
[Black "Uysal, Ugur"]
[Result "0-1"]
[ECO "D01"]
[WhiteElo "1255"]
[BlackElo "1689"]
[Annotator "NA"]
[PlyCount "88"]
[EventDate "2018.08.06"]
[EventType "swiss"]
[EventCountry "TUR"]
[SourceTitle "playchess.com"]
[Source "ChessBase"]
[SourceQuality "1"]
[TimeControl "5400+30"]

1. d4 {[%emt 1:26:43]} Nf6 {[%emt 1:20:08]} 2. Nc3 {[%emt 0:00:30]} d5 {[%emt 0:00:30]} 3. Bg5 {[%emt 0:00:30]} g6 {[%emt 0:00:30]} 4. Qd2 {[%emt 0:00:30]} Bg7 {[%emt 0:00:30]} 5. f3 {[%emt 0:00:30]} O-O {[%emt 0:00:30]} 6. e4 {[%emt 0:00:30]} dxe4 {[%emt 0:00:30]} 7. fxe4 {[%emt 0:00:30]} Nc6 {[%emt 0:00:30]} 8. O-O-O {[%emt 0:00:30]} Bg4 {[%emt 0:00:30]} 9. Be2 {[%emt 0:00:30]} Bxe2 {[%emt 0:00:30]} 10. Ngxe2 {[%emt 0:00:30]} a6 {[%emt 0:00:30]} 11. h3 {[%emt 0:00:30]} b5 {[%emt 0:00:30]} 12. e5 {[%emt 0:00:30]} Nd5 {[%emt 0:00:30]} 13. Nxd5 {[%emt 0:00:30]} Qxd5 {[%emt 0:00:30]} 14. Nc3 {[%emt 0:00:30]} Qd7 {[%emt 0:00:30]} 15. Kb1 {[%emt 0:00:30]} Rad8 {[%emt 0:00:30]} 16. Be3 {[%emt 0:00:30]} b4 {[%emt 0:00:30]} 17. Ne4 {[%emt 0:00:30]} Qd5 {[%emt 0:00:30]} 18. Nc5 {[%emt 0:00:30]} a5 {[%emt 0:00:30]} 19. Rhe1 {[%emt 0:00:30]} Ra8 {[%emt 0:00:30]} 20. Bg1 {[%emt 0:00:30]} Rfd8 {[%emt 0:00:30]} 21. Be3 {[%emt 0:00:30]} a4 {[%emt 0:00:30]} 22. Qe2 {[%emt 0:00:30]} a3 {[%emt 0:00:30]} 23. b3 {[%emt 0:00:30]} Nxe5 {[%emt 0:00:30]} 24. c4 {[%emt 0:00:30]} bxc3 {[%emt 0:00:30]} 25. dxe5 {[%emt 0:00:30]} Qxe5 {[%emt 0:00:30]} 26. Kc2 {[%emt 0:00:30]} Qf5+ {[%emt 0:00:30]} 27. Rd3 {[%emt 0:00:30]} Rd6 {[%emt 0:00:30]} 28. g4 {[%emt 0:00:30]} Qe5 {[%emt 0:00:30]} 29. Qf2 {[%emt 0:00:30]} Rxd3 {[%emt 0:00:30]} 30. Nxd3 {[%emt 0:00:30]} Qd5 {[%emt 0:00:30]} 31. Bf4 {[%emt 0:00:30]} Rd8 {[%emt 0:00:30]} 32. Qg3 {[%emt 0:00:30]} c5 {[%emt 0:00:30]} 33. Be5 {[%emt 0:00:30]} c4 {[%emt 0:00:30]} 34. bxc4 {[%emt 0:00:30]} Bxe5 {[%emt 0:00:30]} 35. Rxe5 {[%emt 0:00:30]} Qxc4 {[%emt 0:00:30]} 36. Rxe7 {[%emt 0:00:30]} Qxa2+ {[%emt 0:00:30]} 37. Kxc3 {[%emt 0:00:30]} Qa1+ {[%emt 0:00:30]} 38. Kd2 {[%emt 0:03:33]} Qb2+ {[%emt 0:03:42]} 39. Ke3 {[%emt 0:00:31]} Rxd3+ {[%emt 0:00:00]} 40. Kxd3 {[%emt 0:00:52]} Qb3+ {[%emt 0:00:26]} 41. Kd4 {[%emt 0:00:03]} Qxg3 {[%emt 0:00:05]} 42. Re8+ {[%emt 0:00:30]} Kg7 {[%emt 0:00:00]} 43. Re3 {[%emt 0:00:24]} Qxe3+ {[%emt 0:00:13]} 44. Kxe3 {[%emt 0:00:30]} a2 {[%emt 0:00:00]} 0-1

[Event "26th Troya Open 2018"]
[Site "Canakkale"]
[Date "2018.08.05"]
[Round "2.5"]
[White "Lomsadze, Davit"]
[Black "Gulsoy, Mustafa Alpago"]
[Result "0-1"]
[ECO "A05"]
[WhiteElo "2352"]
[BlackElo "1978"]
[Annotator "ChessBase"]
[PlyCount "32"]
[EventDate "2018.08.06"]
[EventType "swiss"]
[EventCountry "TUR"]
[SourceTitle "playchess.com"]
[Source "ChessBase"]
[SourceQuality "1"]
[TimeControl "5400+30"]

1. Nf3 {[%emt 0:01:30]} Nf6 {[%emt 0:07:30]} 2. g3 {[%emt 0:00:30]} b5 {[%emt 0:00:30]} 3. Bg2 {[%emt 0:00:30]} Bb7 {[%emt 0:00:30]} 4. O-O {[%emt 0:00:30]} e6 {[%emt 0:00:30]} 5. d3 {[%emt 0:01:30]} c5 {[%emt 0:01:30]} 6. a4 {[%emt 0:00:30]} b4 {[%emt 0:00:30]} 7. e4 {[%emt 0:00:30]} d6 {[%emt 0:01:30]} 8. Nbd2 {[%emt 0:00:30]} Be7 {[%emt 0:01:30]} 9. b3 {[%emt 0:00:00]} Nc6 {[%emt 0:02:30]} 10. Bb2 {[%emt 0:03:00]} O-O {[%emt 0:01:30]} 11. Re1 {[%emt 0:01:30]} d5 {[%emt 0:00:30]} 12. exd5 {[%emt 0:01:30]} Nxd5 {[%emt 0:05:30]} 13. Nc4 {[%emt 0:01:30]} Bf6 {[%emt 0:04:30]} 14. Nfe5 {[%emt 0:01:30]} Qc7 {[%emt 0:02:30]} 15. Bxd5 {[%emt 0:08:30]} exd5 {[%emt 0:01:30]} 16. Nxc6 {[%emt 0:00:30]} dxc4 {[%emt 0:00:30]} 0-1